Cogmind - Beta 9.4 @@@ ROGUE MODE // 2020.01.29 @ 17:38:07 Player: Ryker Result: Destroyed by as-02330 with Assembled Blade Performance ------------- Evolutions (0) 0 Regions Visited (4) 800 Robots Destroyed (27) 135 Value Destroyed (645) 645 Prototype IDs (24) 480 Alien Tech Used (0) 0 Bonus (300) 300 TOTAL SCORE: 2360 Bonus ------- Aligned with FarCom 300 Cogmind --------- Core Integrity 0/250 Matter 269/300 Energy 264/265 System Corruption 0% Temperature Cool (0) Movement Walking (150) Ox1 Location -9/Mines Parts ------- > --- POWER (1) -------- Improved Ion Engine > --- PROPULSION (2) --- Aluminum Leg > --- UTILITY (2) ------ Core Shielding > --- WEAPON (2) ------- Heavy Assault Rifle > --- INVENTORY (4) ---- Light Treads Improved Treads Cloak of Protection Light Cannon Peak State ------------ > --- POWER ------------ Improved Ion Engine > --- PROPULSION ------- Aluminum Leg Aluminum Leg > --- UTILITY ---------- Cloak of Protection Core Shielding > --- WEAPON ----------- Light Assault Rifle Heavy Assault Rifle > --- INVENTORY -------- Light Treads Improved Heat Sink Light Armor Plating Light Assault Rifle [Rating: 16] Favorites ----------- Power Improved Ion Engine Engine Improved Ion Engine Power Core Light Nuclear Core Propulsion Aluminum Leg Treads Light Treads Leg Aluminum Leg Utility Core Shielding Device Cloak of Protection Storage Small Storage Unit Hackware Hacking Suite Protection Core Shielding Weapon Light Assault Rifle Energy Gun EM Pulse Gun Energy Cannon Beam Cannon Ballistic Gun Light Assault Rifle Launcher Grenade Launcher Special Weapon Plasma Cutter Build | -11 -10 -10 -10 -9 ------- Run | Scr Mat Min Exi Min Slots Evolved . | . . . . . Power . | . . . . . Propulsion . | . . . . . Utility . | . . . . . Weapon . | . . . . . Parts Attached 61 | 5 32 22 2 . Power 6 | 1 2 2 1 . Engine 5 | 1 1 2 1 . Core 1 | . 1 . . . Reactor . | . . . . . Propulsion 13 | 2 7 4 . . Treads 3 | 2 . 1 . . Leg 10 | . 7 3 . . Wheel . | . . . . . Hover . | . . . . . Flight . | . . . . . Utility 12 | 1 5 5 1 . Device 5 | . 4 . 1 . Storage 4 | 1 . 3 . . Processor . | . . . . . Hackware 1 | . 1 . . . Protection 2 | . . 2 . . Artifact . | . . . . . Weapon 30 | 1 18 11 . . Energy Gun 8 | . 5 3 . . Energy Cannon 4 | . 4 . . . Ballistic Gun 12 | 1 4 7 . . Ballistic Cannon . | . . . . . Launcher 2 | . 1 1 . . Special Weapon 4 | . 4 . . . Impact Weapon . | . . . . . Slashing Weapon . | . . . . . Piercing Weapon . | . . . . . Special Melee Weapon . | . . . . . Unidentified Prototypes . | . . . . . Parts Lost 7 | . 4 2 . 1 Power . | . . . . . Propulsion 2 | . 1 . . 1 Utility . | . . . . . Weapon 5 | . 3 2 . . Highest Loss Streak 2 | . 2 1 . 1 Average Slot Usage (%) 99 | . 98 99 99 98 Engine 10 | . 4 12 13 14 Core 3 | . 9 1 . . Treads 2 | . 7 . . . Leg 25 | . 19 28 28 27 Device 9 | . 11 7 8 13 Storage 7 | . 14 10 . . Protection 10 | . . 9 19 14 Energy Gun 4 | . 3 11 . . Energy Cannon 4 | . 13 . . . Ballistic Gun 17 | . 3 15 28 27 Special Weapon 1 | . 4 . . . Naked Turns . | . . . . . Heaviest Build 45 | 9 16 45 20 20 Greatest Support 40 | 3 40 20 20 20 Greatest Overweight (x) 4 | 2 4 2 . 1 Average Overweight (x) . | 1 . . . . Largest Inventory Capacity 12 | 6 6 12 4 4 Average Capacity 5 | 5 6 5 4 4 Most Carried 11 | 6 6 11 4 4 Average Carried 4 | 3 5 4 3 3 Final Capacity 6 | 6 6 4 4 4 Final Carried 6 | 3 6 4 4 4 Class Distribution -------------------- 87% | Scavenger-Mutant 12% | Mutant Dominant Class ---------------- Scavenger-Mutant | -10/Materials Scavenger-Mutant | -10/Mines Scavenger-Mutant | -10/Exiles Scavenger-Mutant | -9/Mines Resources | -11 -10 -10 -10 -9 ----------- Run | Scr Mat Min Exi Min Matter Collected 887 | 214 376 277 . 20 Remotely . | . . . . . Salvage Created 840 | . 511 309 . 20 Parts 54 | . 40 14 . . Haulers Intercepted . | . . . . . Recyclers Shooed 1 | . . 1 . . Parts Field Recycled . | . . . . . Retrieved Matter . | . . . . . Parts Self-Destructed . | . . . . . Prevented . | . . . . . Kills | -11 -10 -10 -10 -9 ------- Run | Scr Mat Min Exi Min Combat Hostiles Destroyed 21 | . 13 7 . 1 Melee 1 | . . 1 . . Guns 13 | . 6 6 . 1 Cannons 5 | . 5 . . . AOE 2 | . 2 . . . Classes Destroyed 8 | . 5 2 . 1 Worker 1 | . . 1 . . Builder 1 | . 1 . . . Recycler 1 | . . 1 . . Operator 1 | . 1 . . . Watcher 2 | . 2 . . . Swarmer 6 | . 3 3 . . Grunt 14 | . 10 4 . . Assembled 1 | . . . . 1 Best Kill Streak 4 | . 4 4 . 1 Combat Bots Only 4 | . 4 4 . 1 Max Kills in Single Turn 2 | . 2 1 . 1 Gunslinging . | . . . . . Exploded 2 | . 2 . . . Melee 1 | . . 1 . . Uniques/NPCs Destroyed . | . . . . . Combat | -11 -10 -10 -10 -9 -------- Run | Scr Mat Min Exi Min Damage Taken 1528 | . 679 567 . 282 Core 266 | . 94 120 . 52 Absorbed by Shields . | . . . . . Core Remaining (%) 100 | 100 . . . . Volleys Fired 111 | . 70 32 1 8 Largest 2 | . 2 2 2 2 Hottest 120 | . 120 90 43 43 Shots Fired 170 | . 107 49 2 12 Gun 112 | . 53 45 2 12 Cannon 44 | . 44 . . . Launcher 6 | . 2 4 . . Special 8 | . 8 . . . Kinetic 53 | . 8 31 2 12 Thermal 100 | . 97 3 . . Explosive 6 | . 2 4 . . Electromagnetic 11 | . . 11 . . Robot Hit Streak 10 | . 6 10 . 5 Robot Miss Streak 3 | . 3 2 . 2 Penetration Max . | . . . . . Secondary Targets 2 | . 1 1 . . Max Gunslinging Chain 1 | . 1 1 . . Shots Hit Robots 98 | . 61 32 . 5 Core Hits 49 | . 26 20 . 3 Critical Hits 2 | . 2 . . . Critical Kills . | . . . . . Critical Parts Destroyed 2 | . 2 . . . Melee Attacks . | . . . . . Impact . | . . . . . Slashing . | . . . . . Piercing . | . . . . . Sneak Attacks . | . . . . . Combat Hostiles . | . . . . . Follow-up Attacks . | . . . . . Damage Inflicted 1473 | . 910 473 . 90 Guns 644 | . 270 284 . 90 Cannons 418 | . 418 . . . Explosions 326 | . 143 183 . . Melee . | . . . . . Ramming 8 | . 2 6 . . Kinetic 294 | . 52 152 . 90 Thermal 726 | . 713 13 . . Explosive 326 | . 143 183 . . Electromagnetic 119 | . . 119 . . Impact . | . . . . . Slashing . | . . . . . Piercing . | . . . . . Highest Corruption . | . . . . . Average Corruption . | . . . . . Corruption Purged . | . . . . . Overload Shots . | . . . . . Overflow Damage 4 | . 4 . . . Projectiles 4 | . 4 . . . Explosions . | . . . . . Melee . | . . . . . Knockbacks . | . . . . . Impact . | . . . . . Kinetic . | . . . . . Secondary . | . . . . . Self-Inflicted Damage 1 | . . 1 . . Shots . | . . . . . Rammed 3 | . 1 2 . . Targets Rammed 4 | . 1 3 . . Kicked 1 | . . 1 . . Crushed . | . . . . . Highest Temperature 208 | . 208 10 10 4 Average Temperature 43 | . 47 5 7 3 Received Heat Transfer 516 | . 327 189 . . Siege Activations . | . . . . . Robots Corrupted . | . . . . . Combat Hostiles . | . . . . . Parts Fried . | . . . . . Impact Corruptions . | . . . . . Robots Melted . | . . . . . Combat Hostiles . | . . . . . Parts Melted 1 | . 1 . . . Heat Transferred 1684 | . 1647 37 . . Parts Sabotaged . | . . . . . Parts Stolen . | . . . . . Parts Stripped . | . . . . . Power Chain Reactions . | . . . . . Missiles Intercepted . | . . . . . Alert | -11 -10 -10 -10 -9 ------- Run | Scr Mat Min Exi Min Peak Influence 195 | . 177 195 . 15 Average Influence 50 | . 69 59 . . Maximum Alert Level . | . . . . . Low Security (%) 100 | 100 100 100 . 100 Level 1 . | . . . . . Level 2 . | . . . . . Level 3 . | . . . . . Level 4 . | . . . . . Level 5 . | . . . . . High Security . | . . . . . Max Security . | . . . . . Squads Dispatched 4 | . 4 . . . Investigation 2 | . 2 . . . Extermination . | . . . . . Reinforcement 2 | . 2 . . . Assault . | . . . . . Garrison . | . . . . . Intercept . | . . . . . Construction Impeded . | . . . . . Haulers Reinforced . | . . . . . Stealth | -11 -10 -10 -10 -9 --------- Run | Scr Mat Min Exi Min Distress Signals 4 | . 4 . . . Communications Jammed . | . . . . . Distress Signals . | . . . . . Times Spotted 41 | . 30 9 . 2 Peak Tracking Total 7 | . 7 3 . 3 Tactical Retreats 2 | . 2 . . . Traps | -11 -10 -10 -10 -9 ------- Run | Scr Mat Min Exi Min Traps Triggered 1 | . 1 . . . Indirectly . | . . . . . Trap Hack Attempts . | . . . . . Triggered . | . . . . . Disarmed . | . . . . . Reprogrammed . | . . . . . Reused . | . . . . . Traps Extracted . | . . . . . Installed . | . . . . . Triggered . | . . . . . Machines | -11 -10 -10 -10 -9 ---------- Run | Scr Mat Min Exi Min Machines Disabled 2 | . 1 . 1 . Max in Single Turn 1 | . 1 . 1 . Machines Sabotaged . | . . . . . Garrisons Compromised . | . . . . . Overloaded Fab Kills . | . . . . . Fab Network Shutdowns . | . . . . . Hacking | -11 -10 -10 -10 -9 --------- Run | Scr Mat Min Exi Min Machines Accessed 11 | . 6 . 5 . Terminals 4 | . 4 . . . Fabricators . | . . . . . Repair Stations 1 | . 1 . . . Recycling Units 1 | . 1 . . . Scanalyzers . | . . . . . Garrison Access . | . . . . . Total Hacks 69 | . 20 . 49 . Successful 66 | . 17 . 49 . Failed 3 | . 3 . . . Catastrophic 1 | . 1 . . . Database Lockouts . | . . . . . Manual 3 | . . . 3 . Terminals 12 | . 12 . . . Fabricators . | . . . . . Repair Stations 2 | . 2 . . . Recycling Units 6 | . 6 . . . Scanalyzers . | . . . . . Garrison Access . | . . . . . Terminal Hacks 58 | . 9 . 49 . Record 56 | . 8 . 48 . Prototype ID Bank 1 | . 1 . . . EX-Prototype ID Bank 1 | . . . 1 . Fabricator Hacks . | . . . . . Repair Station Hacks 2 | . 2 . . . Scan Component 1 | . 1 . . . Repair 1 | . 1 . . . Recycling Unit Hacks 6 | . 6 . . . Recycle Component 1 | . 1 . . . Process 3 | . 3 . . . Report Inventory 2 | . 2 . . . Scanalyzer . | . . . . . Garrison Access Hacks . | . . . . . Unauthorized Hacks . | . . . . . Terminals . | . . . . . Fabricators . | . . . . . Repair Stations . | . . . . . Recycling Units . | . . . . . Scanalyzers . | . . . . . Garrison Access . | . . . . . Data Cores Recovered 1 | . 1 . . . Used 1 | . 1 . . . Hacking Detections 3 | . 3 . . . Full Trace Events 2 | . 2 . . . Feedback Events . | . . . . . Feedback Blocked . | . . . . . Robot Schematics Acquired . | . . . . . Robots Built . | . . . . . Matter . | . . . . . Time . | . . . . . Total Robot Build Rating . | . . . . . Part Schematics Acquired . | . . . . . Parts Built . | . . . . . Matter . | . . . . . Time . | . . . . . Total Part Build Rating . | . . . . . Parts Repaired 1 | . 1 . . . Time 26 | . 26 . . . Parts Recycled 1 | . 1 . . . Recycled Matter 189 | . 189 . . . Retrieved Matter . | . . . . . Retrieved Components . | . . . . . Parts Scanalyzed . | . . . . . Part Schematics Acquired . | . . . . . Parts Damaged . | . . . . . Bothacking | -11 -10 -10 -10 -9 ------------ Run | Scr Mat Min Exi Min Used RIF Installer . | . . . . . Robots Hacked . | . . . . . Non-combat . | . . . . . Combat . | . . . . . Robot Hacks Applied . | . . . . . Relay Couplers Released . | . . . . . Robots Rewired . | . . . . . Allies Hacked . | . . . . . Hacks Repelled . | . . . . . Allies | -11 -10 -10 -10 -9 -------- Run | Scr Mat Min Exi Min Total Allies 2 | . . . . 2 Largest Group 2 | . . . . 2 Highest-Rated Group 45 | . . . . 45 Highest-Rated Ally 31 | . . . . 31 Total Orders . | . . . . . Ally Attacks . | . . . . . Total Damage . | . . . . . Kills . | . . . . . Allies Corrupted . | . . . . . Allies Melted . | . . . . . Intel | -11 -10 -10 -10 -9 ------- Run | Scr Mat Min Exi Min Robot Analysis Total . | . . . . . Derelict Logs Recovered 5 | . . 2 . 3 Drone Launches . | . . . . . Drone Recoveries . | . . . . . Exploration | -11 -10 -10 -10 -9 ------------- Run | Scr Mat Min Exi Min Turns Passed 3790 | 75 1081 1056 1061 517 Spaces Moved 2607 | 47 591 711 878 380 Core 66 | 47 19 . . . Treads 89 | . 89 . . . Legs 2452 | . 483 711 878 380 Wheels . | . . . . . Hover . | . . . . . Flight . | . . . . . Fastest Speed 50 | 50 120 120 120 120 Average Speed 123 | 122 130 122 120 120 Slowest Speed 250 | 150 250 180 120 150 Overloaded Moves . | . . . . . Propulsion Burnouts . | . . . . . Robots Hopped . | . . . . . Cave-ins Triggered . | . . . . . Exploration Rate (%) 65 | 4 62 99 95 65 Regions Visited 4 Branch Regions 3 Pre-discovered Areas 3 | . . 1 1 1 Known Exits Taken . | . . . . . Unknown Exits Taken 4 | 1 1 1 1 . Scrap Searched 3 | . . 2 . 1 Spaces Dug . | . . . . . Terrain Destroyed 40 | . 13 27 . . Melee . | . . . . . Projectile . | . . . . . AOE 40 | . 13 27 . . Actions | -11 -10 -10 -10 -9 --------- Run | Scr Mat Min Exi Min Total 3024 | 67 788 852 884 433 Wait 109 | . 39 33 . 37 Move 2603 | 46 590 710 877 380 Hop . | . . . . . Pick Up 72 | 12 31 25 1 3 Fast Attach 5 | . 3 . 2 . Attach 20 | 5 9 6 . . Detach 3 | . 1 2 . . Swap 36 | . 20 16 . . Drop 55 | 4 24 20 3 4 Fire 111 | . 70 32 1 8 Melee . | . . . . . Ram . | . . . . . Kick 3 | . . 3 . . Crush 1 | . 1 . . . Escape Stasis . | . . . . . Rewire 6 | . . 5 . 1 Trap . | . . . . . Miscellaneous . | . . . . . Route ------- -11/Scrapyard -10/Materials (discovered 2 exits: [*Mat] / [*Min]) -10/Mines (discovered 3 exits: [*Mat x2] / *Exi) -10/Exiles (discovered 2 exits: [*Min x2]) -9/Mines (discovered 1 exit: [*Mat]) History --------- Turn | Location | Event 3 | -11/Scrapyard | Discovered new exit (range 16) 76 | -11/Scrapyard | Entered Materials 582 | -10/Materials | Discovered new exit (range 10) 589 | -10/Materials | Build established: Scavenger-Mutant 813 | -10/Materials | Discovered new exit (range 6) 909 | -10/Materials | Repaired Ion Engine 1157 | -10/Materials | Entered Mines 1219 | -10/Mines | Core integrity fell below 50% 1231 | -10/Mines | Met a Derelict bent on vengeance 1271 | -10/Mines | Learned location of Zion (-7) 1296 | -10/Mines | Core integrity fell below 20% 1473 | -10/Mines | Discovered new exit (range 10) 1482 | -10/Mines | Discovered new exit (range 14) 1517 | -10/Mines | Learned Materials interactive machine intel 1536 | -10/Mines | Deemed a non-threat by the Exiles lab entrance 1791 | -10/Mines | Discovered new exit (range 8) 1902 | -10/Mines | Joined a pair of Derelicts in attacking an 0b10 outpost 2213 | -10/Mines | Entered Exiles 2256 | -10/Exiles | Discovered new exit (range 15) 2282 | -10/Exiles | Met 8R-AWN 2300 | -10/Exiles | Met EX-HEX 2362 | -10/Exiles | Met EX-DEC 2500 | -10/Exiles | Met EX-BIN 2525 | -10/Exiles | Aligned with FarCom system 2527 | -10/Exiles | Given EX-Vault access code 2595 | -10/Exiles | Opened EX-Vault 2613 | -10/Exiles | Found Cloak of Protection 2663 | -10/Exiles | Warned to stay clear of 0b10 Research branches 2788 | -10/Exiles | Discovered new exit (range 10) 2877 | -10/Exiles | Visited The Gauntlet 3274 | -10/Exiles | Left Exiles lab with Cloak of Protection 3274 | -10/Exiles | Entered Mines 3567 | -9/Mines | Discovered new exit (range 16) 3669 | -9/Mines | Learned Materials emergency access door positions 3719 | -9/Mines | Learned 4 Materials zone layouts 3772 | -9/Mines | Excavation squad dispatched 3772 | -9/Mines | A large section of the Mines collapsed 3791 | -9/Mines | Destroyed by as-02330 with Assembled Blade Last Messages --------------- 03393_ Attempting to rewire K-01 Serf. 03393_ K-01 Serf is broken beyond repair. 03444_ Acquired Imp. Treads. 03567_ EXIT=FOUND 03669_ Acquired derelict log, extracted data. Data stored: Materials emergency access points. 03719_ Acquired derelict log, extracted data. Data stored: Materials zone layouts (x4). 03772_ 4E-QVC(g) crushed by falling debris. 03772_ ALERT: Suspicious cave-in, suspected derelict activity in mines. Dispatching escorted excavation squad. 03772_ as-02330 sneak attacks. 03776_ T-07 Excavator destroyed. 03777_ Dropped Cloak of Protection. 03778_ Dropped Imp. Heat Sink. 03779_ Lgt. Assault Rifle severed. 03782_ Aluminum Leg destroyed. 03785_ as-30026 destroyed. 03790_ Acquired Cloak of Protection. [Achievement: First Step to Greatness] Map ----- +----------------------------------------------------+ | | | | | | | | | | | | | | | | | | | | | | | ?????????????????????????????????????????????????? | | ?????????????????????????????????????????????????? | | ?????????????????????????????????????????????????? | | ?????????????????#####???????????????????????????? | | ????????????????## ######??????????????????????? | | ????????????##### #??????????????????????? | | ????????????# ### #??????????????????????? | | ??" """ ##### ### ## #??????????????????????? | | #?# ## ###????????????????????? | | ??" """ #######?## ### #????????????????????? | | ?????????????????## ##?### #????????????????????? | | ??????????????????####??### #????????????????????? | | ???????????????????????## ####???????????????????? | | ??????????????????????####a%###??????????????????? | | ?????????????????????## #@!# #??????????????????? | | ?????????????????????# #[## #??????????????????? | | ?????????????????????# ### ##??????????????????? | | ?????????????????????## ##???????????????????? | | ??????????????????????# ###????????????????????? | | ??????????????????????# ##??????????????????????? | | ??????????????????????# #???????????????????????? | | ????????????????????### #???????????????????????? | | ???????????? ??????# #???????????????????????? | | ???????????? ??????# ####???????????????????????? | | ???????????# ?###### #??????????????????????????? | | ???????????# ?# #??????????????????????????? | | ???????????# ?# #####??????????????????????????? | | ???????????# ## #??????????????????????????????? | | ???????????# ## ##?????????????????????????????? | | ???????????# #?????????????????????????????? | | ???????????# # ############ #???????????????? | | ?????????### #???????????????? | | ????????## """ #???????????????? | | ????????# """ ###############?????????????????? | | ????????# """ #???????????????????????????????? | | ????????## #???????????????????????????????? | | ?????????# ##??????????????????????????????? | | ?????????# #??????????????????????????????? | | ????????## #######????????????????????????? | +----------------------------------------------------+ Best States ------------- Heat Dissipation 39 Energy Generation 14 Energy Capacity 265 Matter Stores 300 Matter Capacity 300 Sight Range 16 Terrain Scan Density 10 Cloak Strength 5 Armor Coverage 150 Core Shielding 20 Evasion (%) 40 Recoil Reduction 2 Offensive Hacking 10 Item Schematics ----------------- None Robot Schematics ------------------ None Fabricated ------------ Nothing Alien Tech Used ----------------- None Achievements -------------- Crack Shot Dynamic Key First Step to Greatness Librarian One Hack Too Far Part-time Mechanic Tourist Uninvited Guest Challenges ------------ None Game ------ Seed HellfireCombatReactor Manual? 0 Play Time 01:26:49 Cumulative 3.7 hours Start 2020.01.29 @ 16:06:12 End 2020.01.29 @ 17:38:07 Sessions 1 Manual Loads 0 Difficulty Rogue Special Mode None Game No. 4 Rogue 4 Adventurer 0 Explorer 0 Win Type - Total 0 Types 0/0/0/0/0/0/0 Lore% 11 Gallery% 5 Achievement% 3 Wizard Run 0 Options --------- ASCII 0 Keyboard 0 Movement Mouse Keybinds 0 Fullscreen 1 Font 16/SmallcapsGlow Map View 76x50 Tactical HUD 1 Map Filters NONE Filters NONE Steam 1 RUN: ccae59d9-477e-4efc-942d-84e3634377af